[Event "November 21 Late 2023"]
[Site "https://www.chess.com"]
[Date "2023.11.21"]
[Round "8"]
[White "Curtis, John"]
[Black "Akhayan, Ruben"]
[Result "1-0"]
[Board "110"]
[TimeControl "180+1"]
[WhiteFideId "3200256"]
[BlackFideId "204439"]
[WhiteElo "2203"]
[BlackElo "2141"]
[WhiteTeam "AUS"]
[BlackTeam "BEL"]
[WhiteClock "0:01:39"]
[BlackClock "0:02:01"]

1. d4 {[%clk 0:02:53]}  Nf6 {[%clk 0:02:59]} 2. c4 {[%clk 0:02:52]}  g6 {[%clk 0:02:59]} 3. Nc3 {[%clk 0:02:51]}  d5 {[%clk 0:03:00]} 4. cxd5 {[%clk 0:02:50]}  Nxd5 {[%clk 0:03:00]} 5. e4 {[%clk 0:02:50]}  Nxc3 {[%clk 0:03:00]} 6. bxc3 {[%clk 0:02:51]}  Bg7 {[%clk 0:03:00]} 7. Bc4 {[%clk 0:02:51]}  O-O {[%clk 0:03:01]} 8. Ne2 {[%clk 0:02:52]}  c5 {[%clk 0:03:01]} 9. Be3 {[%clk 0:02:52]}  Nc6 {[%clk 0:03:02]} 10. O-O {[%clk 0:02:51]}  Qc7 {[%clk 0:03:02]} 11. Rc1 {[%clk 0:02:50]}  Rd8 {[%clk 0:03:02]} 12. Qe1 {[%clk 0:02:49]}  Qa5 {[%clk 0:03:01]} 13. e5 {[%clk 0:02:16]}  cxd4 {[%clk 0:03:00]} 14. cxd4 {[%clk 0:02:16]}  Qxe1 {[%clk 0:03:00]} 15. Rfxe1 {[%clk 0:02:16]}  Bf5 {[%clk 0:02:57]} 16. Ng3 {[%clk 0:02:06]}  Nxd4 {[%clk 0:02:53]} 17. Bxd4 {[%clk 0:02:06]}  Rxd4 {[%clk 0:02:52]} 18. Nxf5 {[%clk 0:02:06]}  gxf5 {[%clk 0:02:52]} 19. e6 {[%clk 0:02:07]}  Rc8 {[%clk 0:02:18]} 20. exf7+ {[%clk 0:01:49]}  Kf8 {[%clk 0:02:19]} 21. Be6 {[%clk 0:01:42]}  Rxc1 {[%clk 0:02:12]} 22. Rxc1 {[%clk 0:01:42]}  Bh6 {[%clk 0:02:01]} 23. Rc8+ {[%clk 0:01:39]} 1-0

[Event "November 21 Late 2023"]
[Site "https://www.chess.com"]
[Date "2023.11.21"]
[Round "8"]
[White "seasidesunset"]
[Black "Gallegos Diaz, Carlos Alberto"]
[Result "0-1"]
[Board "111"]
[TimeControl "180+1"]
[BlackFideId "3900886"]
[WhiteElo "2185"]
[BlackElo "2362"]
[BlackTeam "VEN"]
[WhiteClock "0:00:00"]
[BlackClock "0:00:37"]

1. e4 {[%clk 0:02:59]}  g6 {[%clk 0:02:59]} 2. Bc4 {[%clk 0:02:58]}  c6 {[%clk 0:02:57]} 3. Qf3 {[%clk 0:02:53]}  d5 {[%clk 0:02:51]} 4. exd5 {[%clk 0:02:52]}  Nf6 {[%clk 0:02:50]} 5. Nc3 {[%clk 0:02:32]}  Bg7 {[%clk 0:02:47]} 6. h3 {[%clk 0:02:25]}  O-O {[%clk 0:02:45]} 7. Nge2 {[%clk 0:02:24]}  b5 {[%clk 0:02:16]} 8. Bb3 {[%clk 0:01:14]}  b4 {[%clk 0:02:09]} 9. dxc6 {[%clk 0:00:53]}  bxc3 {[%clk 0:02:08]} 10. dxc3 {[%clk 0:00:39]}  Qc7 {[%clk 0:01:47]} 11. Ba4 {[%clk 0:00:25]}  Ba6 {[%clk 0:01:41]} 12. Bf4 {[%clk 0:00:18]}  e5 {[%clk 0:01:40]} 13. Bg3 {[%clk 0:00:18]}  Nh5 {[%clk 0:01:32]} 14. Bh2 {[%clk 0:00:17]}  Qe7 {[%clk 0:01:06]} 15. O-O-O {[%clk 0:00:13]}  e4 {[%clk 0:01:02]} 16. Qe3 {[%clk 0:00:11]}  Be5 {[%clk 0:00:56]} 17. g4 {[%clk 0:00:06]}  Nf6 {[%clk 0:00:49]} 18. f4 {[%clk 0:00:05]}  exf3 {[%clk 0:00:44]} 19. Bxe5 {[%clk 0:00:04]}  fxe2 {[%clk 0:00:41]} 20. Rde1 {[%clk 0:00:04]}  Re8 {[%clk 0:00:39]} 21. c7 {[%clk 0:00:03]}  Qxe5 {[%clk 0:00:39]} 22. cxb8=Q {[%clk 0:00:02]}  Qxe3+ {[%clk 0:00:37]} 23. Kb1 {[%clk 0:00:00]}  Raxb8 {[%clk 0:00:37]} 0-1

[Event "November 21 Late 2023"]
[Site "https://www.chess.com"]
[Date "2023.11.21"]
[Round "8"]
[White "kinghunter183"]
[Black "Szente Varga, Fruzsina"]
[Result "1-0"]
[Board "112"]
[TimeControl "180+1"]
[BlackFideId "712264"]
[WhiteElo "2158"]
[BlackElo "1994"]
[BlackTeam "HUN"]
[WhiteClock "0:00:07"]
[BlackClock "0:01:40"]

1. c4 {[%clk 0:03:00]}  Nf6 {[%clk 0:02:57]} 2. b3 {[%clk 0:02:59]}  g6 {[%clk 0:02:57]} 3. Bb2 {[%clk 0:02:59]}  Bg7 {[%clk 0:02:58]} 4. Nf3 {[%clk 0:02:59]}  O-O {[%clk 0:02:58]} 5. e3 {[%clk 0:02:57]}  d5 {[%clk 0:02:57]} 6. d4 {[%clk 0:02:56]}  c6 {[%clk 0:02:56]} 7. Nc3 {[%clk 0:02:51]}  Bg4 {[%clk 0:02:54]} 8. Be2 {[%clk 0:02:50]}  Nbd7 {[%clk 0:02:52]} 9. O-O {[%clk 0:02:47]}  Bxf3 {[%clk 0:02:52]} 10. Bxf3 {[%clk 0:02:46]}  e5 {[%clk 0:02:53]} 11. dxe5 {[%clk 0:02:42]}  Nxe5 {[%clk 0:02:54]} 12. cxd5 {[%clk 0:02:38]}  Nxf3+ {[%clk 0:02:54]} 13. Qxf3 {[%clk 0:02:37]}  Nxd5 {[%clk 0:02:53]} 14. Rac1 {[%clk 0:02:31]}  Nxc3 {[%clk 0:02:48]} 15. Bxc3 {[%clk 0:02:32]}  Bxc3 {[%clk 0:02:49]} 16. Rxc3 {[%clk 0:02:32]}  Qd2 {[%clk 0:02:49]} 17. Rfc1 {[%clk 0:02:17]}  Qxa2 {[%clk 0:02:49]} 18. h3 {[%clk 0:02:17]}  Rad8 {[%clk 0:02:48]} 19. b4 {[%clk 0:02:14]}  Rd2 {[%clk 0:02:47]} 20. Rc5 {[%clk 0:02:05]}  Rfd8 {[%clk 0:02:43]} 21. b5 {[%clk 0:02:02]}  cxb5 {[%clk 0:02:38]} 22. Rxb5 {[%clk 0:01:55]}  b6 {[%clk 0:02:38]} 23. Rbb1 {[%clk 0:01:51]}  Qe6 {[%clk 0:02:27]} 24. Rc7 {[%clk 0:01:48]}  a5 {[%clk 0:02:26]} 25. Rxb6 {[%clk 0:01:31]}  Rd1+ {[%clk 0:02:26]} 26. Kh2 {[%clk 0:01:31]}  Qe5+ {[%clk 0:02:27]} 27. Qf4 {[%clk 0:01:31]}  Qxf4+ {[%clk 0:02:27]} 28. exf4 {[%clk 0:01:30]}  R8d4 {[%clk 0:02:19]} 29. Kg3 {[%clk 0:01:23]}  R1d3+ {[%clk 0:02:19]} 30. f3 {[%clk 0:01:23]}  Rd5 {[%clk 0:02:20]} 31. Ra7 {[%clk 0:01:17]}  Rf5 {[%clk 0:02:19]} 32. Rba6 {[%clk 0:01:15]}  Rdd5 {[%clk 0:02:19]} 33. Ra8+ {[%clk 0:01:10]}  Kg7 {[%clk 0:02:18]} 34. R8a7 {[%clk 0:01:08]}  h5 {[%clk 0:02:18]} 35. Rb7 {[%clk 0:01:03]}  h4+ {[%clk 0:02:16]} 36. Kxh4 {[%clk 0:01:02]}  Rxf4+ {[%clk 0:02:17]} 37. Kg3 {[%clk 0:01:02]}  Ra4 {[%clk 0:02:14]} 38. Raa7 {[%clk 0:01:00]}  Rf5 {[%clk 0:02:14]} 39. Ra8 {[%clk 0:00:58]}  Ra2 {[%clk 0:02:12]} 40. Raa7 {[%clk 0:00:55]}  a4 {[%clk 0:02:12]} 41. Rb4 {[%clk 0:00:54]}  Rg5+ {[%clk 0:02:08]} 42. Rg4 {[%clk 0:00:53]}  Rxg4+ {[%clk 0:02:04]} 43. hxg4 {[%clk 0:00:54]}  Kf6 {[%clk 0:02:05]} 44. Ra6+ {[%clk 0:00:50]}  Ke5 {[%clk 0:02:05]} 45. Ra5+ {[%clk 0:00:45]}  Kd4 {[%clk 0:02:05]} 46. Ra7 {[%clk 0:00:45]}  f5 {[%clk 0:02:05]} 47. gxf5 {[%clk 0:00:45]}  gxf5 {[%clk 0:02:06]} 48. Ra5 {[%clk 0:00:43]}  a3 {[%clk 0:02:02]} 49. Rxf5 {[%clk 0:00:42]}  Kc3 {[%clk 0:02:03]} 50. Ra5 {[%clk 0:00:37]}  Ra1 {[%clk 0:01:59]} 51. f4 {[%clk 0:00:36]}  Kb2 {[%clk 0:01:58]} 52. Rb5+ {[%clk 0:00:29]}  Ka2 {[%clk 0:01:58]} 53. f5 {[%clk 0:00:28]}  Rf1 {[%clk 0:01:53]} 54. Kg4 {[%clk 0:00:26]}  Ka1 {[%clk 0:01:53]} 55. Kg5 {[%clk 0:00:24]}  a2 {[%clk 0:01:53]} 56. f6 {[%clk 0:00:23]}  Rb1 {[%clk 0:01:52]} 57. Ra5 {[%clk 0:00:18]}  Rb7 {[%clk 0:01:51]} 58. Kg6 {[%clk 0:00:17]}  Rb4 {[%clk 0:01:49]} 59. f7 {[%clk 0:00:15]}  Rg4+ {[%clk 0:01:49]} 60. Kh5 {[%clk 0:00:14]}  Rf4 {[%clk 0:01:49]} 61. Kg6 {[%clk 0:00:13]}  Kb2 {[%clk 0:01:47]} 62. Kg7 {[%clk 0:00:09]}  Rg4+ {[%clk 0:01:45]} 63. Kh7 {[%clk 0:00:08]}  Rf4 {[%clk 0:01:44]} 64. Kg8 {[%clk 0:00:07]}  Rg4+ {[%clk 0:01:43]} 65. Kh7 {[%clk 0:00:06]}  Rf4 {[%clk 0:01:43]} 66. Kg7 {[%clk 0:00:04]}  Rf5 {[%clk 0:01:41]} 67. Rxf5 {[%clk 0:00:03]}  a1=Q {[%clk 0:01:41]} 68. f8=Q {[%clk 0:00:04]}  Kb3+ {[%clk 0:01:42]} 69. Qf6 {[%clk 0:00:04]}  Qa7+ {[%clk 0:01:41]} 70. Qf7+ {[%clk 0:00:04]}  Qxf7+ {[%clk 0:01:39]} 71. Kxf7 {[%clk 0:00:04]}  Kc4 {[%clk 0:01:39]} 72. g4 {[%clk 0:00:05]}  Kd4 {[%clk 0:01:40]} 73. g5 {[%clk 0:00:06]}  Ke4 {[%clk 0:01:41]} 74. Rf6 {[%clk 0:00:07]}  Ke5 {[%clk 0:01:40]} 75. g6 {[%clk 0:00:07]} 1-0

[Event "November 21 Late 2023"]
[Site "https://www.chess.com"]
[Date "2023.11.21"]
[Round "8"]
[White "Lutz, Igor Oscar"]
[Black "Vemparala, Nikash"]
[Result "0-1"]
[Board "117"]
[TimeControl "180+1"]
[WhiteFideId "2110806"]
[BlackFideId "30960967"]
[WhiteElo "1764"]
[BlackElo "2069"]
[WhiteTeam "BRA"]
[BlackTeam "USA"]
[WhiteClock "0:00:10"]
[BlackClock "0:00:51"]

1. d4 {[%clk 0:03:00]}  d5 {[%clk 0:02:54]} 2. c4 {[%clk 0:03:00]}  e6 {[%clk 0:02:52]} 3. Nf3 {[%clk 0:03:01]}  h6 {[%clk 0:02:52]} 4. g3 {[%clk 0:03:01]}  Nf6 {[%clk 0:02:51]} 5. Bg2 {[%clk 0:03:02]}  Bd6 {[%clk 0:02:49]} 6. Nbd2 {[%clk 0:03:01]}  O-O {[%clk 0:02:47]} 7. Qc2 {[%clk 0:03:01]}  b6 {[%clk 0:02:42]} 8. e4 {[%clk 0:02:58]}  dxe4 {[%clk 0:02:39]} 9. Nxe4 {[%clk 0:02:58]}  Bb7 {[%clk 0:02:38]} 10. Nxd6 {[%clk 0:02:45]}  cxd6 {[%clk 0:02:36]} 11. O-O {[%clk 0:02:44]}  Nbd7 {[%clk 0:02:32]} 12. Bf4 {[%clk 0:02:42]}  d5 {[%clk 0:02:29]} 13. Bd6 {[%clk 0:02:28]}  Re8 {[%clk 0:02:27]} 14. c5 {[%clk 0:02:24]}  Rc8 {[%clk 0:02:23]} 15. b4 {[%clk 0:02:23]}  Ne4 {[%clk 0:02:19]} 16. Qa4 {[%clk 0:01:54]}  Nxd6 {[%clk 0:02:04]} 17. cxd6 {[%clk 0:01:51]}  a6 {[%clk 0:02:04]} 18. Ne5 {[%clk 0:01:27]}  b5 {[%clk 0:02:03]} 19. Qb3 {[%clk 0:01:20]}  Nf6 {[%clk 0:02:00]} 20. Rac1 {[%clk 0:01:05]}  Qxd6 {[%clk 0:01:59]} 21. Rc5 {[%clk 0:01:01]}  Rxc5 {[%clk 0:01:49]} 22. bxc5 {[%clk 0:01:01]}  Qc7 {[%clk 0:01:49]} 23. Rb1 {[%clk 0:00:54]}  Nd7 {[%clk 0:01:43]} 24. Nd3 {[%clk 0:00:47]}  Nb8 {[%clk 0:01:20]} 25. a4 {[%clk 0:00:31]}  Bc6 {[%clk 0:01:16]} 26. axb5 {[%clk 0:00:26]}  Bxb5 {[%clk 0:01:15]} 27. Ne5 {[%clk 0:00:25]}  Nc6 {[%clk 0:01:13]} 28. Nxc6 {[%clk 0:00:24]}  Qxc6 {[%clk 0:01:13]} 29. Qb4 {[%clk 0:00:20]}  e5 {[%clk 0:01:08]} 30. Rd1 {[%clk 0:00:17]}  exd4 {[%clk 0:01:06]} 31. Rxd4 {[%clk 0:00:18]}  Qe6 {[%clk 0:00:52]} 32. Bf3 {[%clk 0:00:10]}  Qe1+ {[%clk 0:00:50]} 33. Qxe1 {[%clk 0:00:09]}  Rxe1+ {[%clk 0:00:50]} 34. Kg2 {[%clk 0:00:10]}  Bf1+ {[%clk 0:00:51]} 35. Kg1 {[%clk 0:00:10]}  Bh3# {[%clk 0:00:51]} 0-1

[Event "November 21 Late 2023"]
[Site "https://www.chess.com"]
[Date "2023.11.21"]
[Round "8"]
[White "Sarkar, Justin"]
[Black "Herman, Matthew"]
[Result "0-1"]
[Board "118"]
[TimeControl "180+1"]
[WhiteFideId "2010011"]
[BlackFideId "2028964"]
[WhiteElo "2138"]
[BlackElo "2368"]
[WhiteTeam "USA"]
[BlackTeam "USA"]
[WhiteClock "0:00:00"]
[BlackClock "0:01:45"]

1. e4 {[%clk 0:02:50]}  e5 {[%clk 0:02:59]} 2. Nf3 {[%clk 0:02:49]}  Nc6 {[%clk 0:02:59]} 3. Bb5 {[%clk 0:02:48]}  a6 {[%clk 0:02:59]} 4. Ba4 {[%clk 0:02:47]}  Nf6 {[%clk 0:02:59]} 5. O-O {[%clk 0:02:47]}  Be7 {[%clk 0:03:00]} 6. Re1 {[%clk 0:02:46]}  b5 {[%clk 0:03:00]} 7. Bb3 {[%clk 0:02:46]}  O-O {[%clk 0:02:59]} 8. c3 {[%clk 0:02:25]}  d6 {[%clk 0:02:58]} 9. h3 {[%clk 0:02:23]}  Na5 {[%clk 0:02:58]} 10. Bc2 {[%clk 0:02:22]}  c5 {[%clk 0:02:59]} 11. d4 {[%clk 0:02:21]}  Qc7 {[%clk 0:02:59]} 12. d5 {[%clk 0:02:07]}  Nb7 {[%clk 0:02:53]} 13. Nbd2 {[%clk 0:01:58]}  Kh8 {[%clk 0:02:52]} 14. Nf1 {[%clk 0:01:56]}  Ne8 {[%clk 0:02:46]} 15. Ng3 {[%clk 0:01:44]}  g6 {[%clk 0:02:43]} 16. Bh6 {[%clk 0:01:40]}  Ng7 {[%clk 0:02:42]} 17. Nh2 {[%clk 0:01:32]}  Bd7 {[%clk 0:02:35]} 18. f4 {[%clk 0:01:29]}  f6 {[%clk 0:02:31]} 19. f5 {[%clk 0:01:15]}  Nd8 {[%clk 0:02:29]} 20. h4 {[%clk 0:00:37]}  Nf7 {[%clk 0:02:29]} 21. Bxg7+ {[%clk 0:00:22]}  Kxg7 {[%clk 0:02:30]} 22. fxg6 {[%clk 0:00:22]}  hxg6 {[%clk 0:02:30]} 23. h5 {[%clk 0:00:22]}  Rh8 {[%clk 0:02:20]} 24. hxg6 {[%clk 0:00:19]}  Kxg6 {[%clk 0:02:20]} 25. Nf5 {[%clk 0:00:19]}  Bxf5 {[%clk 0:02:20]} 26. exf5+ {[%clk 0:00:18]}  Kg7 {[%clk 0:02:21]} 27. Qg4+ {[%clk 0:00:14]}  Ng5 {[%clk 0:02:21]} 28. Nf3 {[%clk 0:00:12]}  Qc8 {[%clk 0:01:55]} 29. Nxg5 {[%clk 0:00:06]}  fxg5 {[%clk 0:01:55]} 30. f6+ {[%clk 0:00:04]}  Bxf6 {[%clk 0:01:55]} 31. Bf5 {[%clk 0:00:04]}  Qe8 {[%clk 0:01:54]} 32. Rf1 {[%clk 0:00:02]}  Rh4 {[%clk 0:01:47]} 33. Qg3 {[%clk 0:00:00]}  Qh5 {[%clk 0:01:45]} 0-1

[Event "November 21 Late 2023"]
[Site "https://www.chess.com"]
[Date "2023.11.21"]
[Round "8"]
[White "Castillo Pena, Patricia Evarista"]
[Black "Golubenko, Valentina"]
[Result "1/2-1/2"]
[Board "121"]
[TimeControl "180+1"]
[WhiteFideId "6412106"]
[BlackFideId "4501993"]
[WhiteElo "1861"]
[BlackElo "2126"]
[WhiteTeam "DOM"]
[BlackTeam "CRO"]
[WhiteClock "0:00:15"]
[BlackClock "0:00:06"]

1. d4 {[%clk 0:03:00]}  Nf6 {[%clk 0:02:59]} 2. Nf3 {[%clk 0:03:00]}  c5 {[%clk 0:02:59]} 3. e3 {[%clk 0:03:00]}  cxd4 {[%clk 0:02:58]} 4. exd4 {[%clk 0:03:01]}  g6 {[%clk 0:02:59]} 5. c4 {[%clk 0:02:59]}  Bg7 {[%clk 0:02:59]} 6. Nc3 {[%clk 0:02:56]}  O-O {[%clk 0:02:58]} 7. Be2 {[%clk 0:02:56]}  d5 {[%clk 0:02:58]} 8. cxd5 {[%clk 0:02:54]}  Nxd5 {[%clk 0:02:58]} 9. O-O {[%clk 0:02:52]}  Nc6 {[%clk 0:02:51]} 10. h3 {[%clk 0:02:29]}  Bf5 {[%clk 0:02:49]} 11. Bg5 {[%clk 0:02:26]}  Ndb4 {[%clk 0:02:41]} 12. a3 {[%clk 0:01:57]}  Nc2 {[%clk 0:02:40]} 13. Rc1 {[%clk 0:01:51]}  N2xd4 {[%clk 0:02:39]} 14. Nxd4 {[%clk 0:01:51]}  Nxd4 {[%clk 0:02:38]} 15. Bg4 {[%clk 0:01:42]}  h6 {[%clk 0:02:11]} 16. Be3 {[%clk 0:01:36]}  Bxg4 {[%clk 0:02:08]} 17. Qxg4 {[%clk 0:01:33]}  Nf5 {[%clk 0:02:04]} 18. Bf4 {[%clk 0:01:15]}  Qb6 {[%clk 0:01:48]} 19. Qe2 {[%clk 0:00:58]}  e6 {[%clk 0:01:47]} 20. Rfd1 {[%clk 0:00:50]}  Rfd8 {[%clk 0:01:39]} 21. Be5 {[%clk 0:00:41]}  Bxe5 {[%clk 0:01:02]} 22. Qxe5 {[%clk 0:00:36]}  Qxb2 {[%clk 0:01:01]} 23. Rxd8+ {[%clk 0:00:26]}  Rxd8 {[%clk 0:01:00]} 24. Rb1 {[%clk 0:00:24]}  Qc2 {[%clk 0:00:33]} 25. Rxb7 {[%clk 0:00:20]}  Nd4 {[%clk 0:00:25]} 26. Ne4 {[%clk 0:00:18]}  Ne2+ {[%clk 0:00:13]} 27. Kh2 {[%clk 0:00:18]}  Qc1 {[%clk 0:00:09]} 28. Nf6+ {[%clk 0:00:18]}  Kf8 {[%clk 0:00:09]} 29. Nh7+ {[%clk 0:00:16]}  Kg8 {[%clk 0:00:07]} 30. Nf6+ {[%clk 0:00:16]}  Kf8 {[%clk 0:00:07]} 31. Nh7+ {[%clk 0:00:16]}  Kg8 {[%clk 0:00:06]} 32. Nf6+ {[%clk 0:00:15]} 1/2-1/2

[Event "November 21 Late 2023"]
[Site "https://www.chess.com"]
[Date "2023.11.21"]
[Round "8"]
[White "Pein, Jonathan"]
[Black "Souza, Gustavo Horokoski De"]
[Result "1-0"]
[Board "122"]
[TimeControl "180+1"]
[WhiteFideId "417092"]
[BlackFideId "2146584"]
[WhiteElo "2192"]
[BlackElo "1824"]
[WhiteTeam "ENG"]
[BlackTeam "BRA"]
[WhiteClock "0:01:36"]
[BlackClock "0:00:21"]

1. e4 {[%clk 0:03:00]}  e6 {[%clk 0:02:58]} 2. d3 {[%clk 0:02:52]}  d5 {[%clk 0:02:58]} 3. Nd2 {[%clk 0:02:53]}  Nf6 {[%clk 0:02:53]} 4. Ngf3 {[%clk 0:02:51]}  Bc5 {[%clk 0:02:53]} 5. e5 {[%clk 0:02:50]}  Nfd7 {[%clk 0:02:53]} 6. d4 {[%clk 0:02:50]}  Be7 {[%clk 0:02:53]} 7. c3 {[%clk 0:02:50]}  c5 {[%clk 0:02:54]} 8. Bd3 {[%clk 0:02:51]}  Nc6 {[%clk 0:02:54]} 9. O-O {[%clk 0:02:49]}  cxd4 {[%clk 0:02:55]} 10. cxd4 {[%clk 0:02:49]}  g5 {[%clk 0:02:56]} 11. Nb3 {[%clk 0:02:43]}  g4 {[%clk 0:02:55]} 12. Ne1 {[%clk 0:02:43]}  h5 {[%clk 0:02:56]} 13. f4 {[%clk 0:02:42]}  gxf3 {[%clk 0:02:30]} 14. Qxf3 {[%clk 0:02:40]}  f5 {[%clk 0:01:33]} 15. exf6 {[%clk 0:02:34]}  Nxf6 {[%clk 0:01:24]} 16. Bg5 {[%clk 0:02:16]}  Rf8 {[%clk 0:00:49]} 17. Bh6 {[%clk 0:02:07]}  Rg8 {[%clk 0:00:47]} 18. Nc2 {[%clk 0:01:52]}  Kd7 {[%clk 0:00:37]} 19. Rae1 {[%clk 0:01:43]}  Kc7 {[%clk 0:00:35]} 20. Bf4+ {[%clk 0:01:43]}  Bd6 {[%clk 0:00:34]} 21. Bxd6+ {[%clk 0:01:42]}  Qxd6 {[%clk 0:00:29]} 22. Qxf6 {[%clk 0:01:40]}  Bd7 {[%clk 0:00:30]} 23. Na3 {[%clk 0:01:37]}  Raf8 {[%clk 0:00:21]} 24. Nb5+ {[%clk 0:01:36]} 1-0

[Event "November 21 Late 2023"]
[Site "https://www.chess.com"]
[Date "2023.11.21"]
[Round "8"]
[White "Vargas, Mauricio"]
[Black "Elbebiber"]
[Result "1-0"]
[Board "124"]
[TimeControl "180+1"]
[WhiteFideId "4404572"]
[WhiteElo "1988"]
[BlackElo "2173"]
[WhiteTeam "COL"]
[WhiteClock "0:01:15"]
[BlackClock "0:00:41"]

1. e4 {[%clk 0:03:00]}  d5 {[%clk 0:02:58]} 2. e5 {[%clk 0:02:59]}  Bf5 {[%clk 0:02:52]} 3. f4 {[%clk 0:03:00]}  e6 {[%clk 0:02:49]} 4. Nf3 {[%clk 0:02:59]}  h6 {[%clk 0:02:45]} 5. h3 {[%clk 0:02:55]}  c5 {[%clk 0:02:42]} 6. d3 {[%clk 0:02:55]}  Nc6 {[%clk 0:02:40]} 7. g4 {[%clk 0:02:55]}  Bh7 {[%clk 0:02:38]} 8. Bg2 {[%clk 0:02:55]}  Nge7 {[%clk 0:02:28]} 9. O-O {[%clk 0:02:52]}  d4 {[%clk 0:02:28]} 10. Nbd2 {[%clk 0:02:50]}  Nd5 {[%clk 0:02:26]} 11. Ne4 {[%clk 0:02:49]}  Be7 {[%clk 0:02:22]} 12. a3 {[%clk 0:02:49]}  Qc7 {[%clk 0:02:13]} 13. Qe1 {[%clk 0:02:46]}  a5 {[%clk 0:02:08]} 14. Bd2 {[%clk 0:02:43]}  b6 {[%clk 0:02:05]} 15. Kh1 {[%clk 0:02:34]}  Kd7 {[%clk 0:01:54]} 16. Rb1 {[%clk 0:02:30]}  f5 {[%clk 0:01:35]} 17. exf6 {[%clk 0:02:29]}  gxf6 {[%clk 0:01:35]} 18. Qe2 {[%clk 0:02:25]}  h5 {[%clk 0:01:31]} 19. g5 {[%clk 0:02:17]}  Nxf4 {[%clk 0:01:21]} 20. Bxf4 {[%clk 0:02:13]}  Qxf4 {[%clk 0:01:21]} 21. Rbe1 {[%clk 0:02:06]}  Bxe4 {[%clk 0:01:19]} 22. dxe4 {[%clk 0:02:01]}  fxg5 {[%clk 0:01:13]} 23. e5 {[%clk 0:01:56]}  Qe3 {[%clk 0:01:05]} 24. Qb5 {[%clk 0:01:51]}  g4 {[%clk 0:00:55]} 25. Rxe3 {[%clk 0:01:37]}  dxe3 {[%clk 0:00:54]} 26. Ne1 {[%clk 0:01:28]}  Rac8 {[%clk 0:00:52]} 27. Rf7 {[%clk 0:01:25]}  Rhf8 {[%clk 0:00:44]} 28. Bxc6+ {[%clk 0:01:22]}  Rxc6 {[%clk 0:00:43]} 29. Rxe7+ {[%clk 0:01:21]}  Kxe7 {[%clk 0:00:42]} 30. Qxc6 {[%clk 0:01:20]}  Rf1+ {[%clk 0:00:43]} 31. Kg2 {[%clk 0:01:18]}  Rxe1 {[%clk 0:00:43]} 32. Qd6+ {[%clk 0:01:17]}  Kf7 {[%clk 0:00:43]} 33. Qd7+ {[%clk 0:01:15]}  Kg6 {[%clk 0:00:43]} 34. Qxe6+ {[%clk 0:01:15]}  Kg5 {[%clk 0:00:41]} 35. Qf6# {[%clk 0:01:15]} 1-0

[Event "November 21 Late 2023"]
[Site "https://www.chess.com"]
[Date "2023.11.21"]
[Round "8"]
[White "Thake, Conrad"]
[Black "Smirnov, Timofey"]
[Result "1-0"]
[Board "125"]
[TimeControl "180+1"]
[WhiteFideId "5602947"]
[BlackFideId "24176427"]
[WhiteElo "1685"]
[BlackElo "2245"]
[WhiteTeam "MLT"]
[BlackTeam "RUS"]
[WhiteClock "0:00:09"]
[BlackClock "0:00:00"]

1. e4 {[%clk 0:03:00]}  e5 {[%clk 0:02:59]} 2. Nf3 {[%clk 0:02:57]}  Nf6 {[%clk 0:02:59]} 3. Nc3 {[%clk 0:02:55]}  Bb4 {[%clk 0:02:58]} 4. d3 {[%clk 0:02:49]}  d5 {[%clk 0:02:58]} 5. exd5 {[%clk 0:02:41]}  Nxd5 {[%clk 0:02:58]} 6. Bd2 {[%clk 0:02:39]}  O-O {[%clk 0:02:56]} 7. Ne4 {[%clk 0:02:30]}  Bxd2+ {[%clk 0:02:57]} 8. Qxd2 {[%clk 0:02:29]}  Nc6 {[%clk 0:02:50]} 9. O-O-O {[%clk 0:02:22]}  Bg4 {[%clk 0:02:42]} 10. Be2 {[%clk 0:02:10]}  a5 {[%clk 0:02:29]} 11. h3 {[%clk 0:02:10]}  Bh5 {[%clk 0:02:26]} 12. g4 {[%clk 0:02:10]}  Bg6 {[%clk 0:02:26]} 13. Nc3 {[%clk 0:01:58]}  Nf4 {[%clk 0:02:22]} 14. d4 {[%clk 0:01:46]}  exd4 {[%clk 0:02:14]} 15. Nxd4 {[%clk 0:01:41]}  Nxe2+ {[%clk 0:02:13]} 16. Ndxe2 {[%clk 0:01:40]}  Qh4 {[%clk 0:01:56]} 17. Qf4 {[%clk 0:01:34]}  Nb4 {[%clk 0:01:46]} 18. Nd4 {[%clk 0:01:17]}  c5 {[%clk 0:01:36]} 19. Nf5 {[%clk 0:01:11]}  Qf6 {[%clk 0:01:25]} 20. Rhe1 {[%clk 0:01:02]}  Bxf5 {[%clk 0:01:24]} 21. gxf5 {[%clk 0:00:53]}  Rad8 {[%clk 0:01:16]} 22. a3 {[%clk 0:00:49]}  Nc6 {[%clk 0:01:10]} 23. Nd5 {[%clk 0:00:48]}  Qh6 {[%clk 0:00:38]} 24. Qxh6 {[%clk 0:00:42]}  gxh6 {[%clk 0:00:39]} 25. Rg1+ {[%clk 0:00:38]}  Kh8 {[%clk 0:00:39]} 26. Nf6 {[%clk 0:00:33]}  Nd4 {[%clk 0:00:32]} 27. Ne4 {[%clk 0:00:25]}  Ne2+ {[%clk 0:00:31]} 28. Kb1 {[%clk 0:00:24]}  Nxg1 {[%clk 0:00:31]} 29. Rxg1 {[%clk 0:00:24]}  Rg8 {[%clk 0:00:20]} 30. Rxg8+ {[%clk 0:00:16]}  Kxg8 {[%clk 0:00:18]} 31. Nxc5 {[%clk 0:00:16]}  Rd5 {[%clk 0:00:17]} 32. Nxb7 {[%clk 0:00:16]}  Rxf5 {[%clk 0:00:16]} 33. Nd6 {[%clk 0:00:15]}  Rxf2 {[%clk 0:00:16]} 34. Nc4 {[%clk 0:00:14]}  Rf1+ {[%clk 0:00:13]} 35. Ka2 {[%clk 0:00:13]}  Rf5 {[%clk 0:00:13]} 36. b4 {[%clk 0:00:12]}  axb4 {[%clk 0:00:13]} 37. axb4 {[%clk 0:00:12]}  Rf4 {[%clk 0:00:12]} 38. Kb3 {[%clk 0:00:12]}  Rh4 {[%clk 0:00:12]} 39. b5 {[%clk 0:00:10]}  Rxh3+ {[%clk 0:00:09]} 40. c3 {[%clk 0:00:10]}  f5 {[%clk 0:00:09]} 41. b6 {[%clk 0:00:10]}  Rh1 {[%clk 0:00:09]} 42. b7 {[%clk 0:00:10]}  Rb1+ {[%clk 0:00:08]} 43. Nb2 {[%clk 0:00:10]}  Kg7 {[%clk 0:00:00]} 44. b8=Q {[%clk 0:00:09]} 1-0